fUST/lending_fUST_20250831
["ID","MTS","AMOUNT","RATE_DAILY","PERIOD"]
[382463409,1756636240359,-480.0,0.0001793,2]
[382463411,1756636240368,-1033.69,0.0001793,2]
[382463413,1756636240379,-12905.7,0.0001793,2]
[382463415,1756636240389,-480.0,0.0001793,2]
[382463417,1756636240399,-1734.94,0.0001793,2]
[382463419,1756636240409,-486.6603232,0.0001793,2]
[382463421,1756636240419,-480.0,0.0001793,2]
[382463423,1756636240430,-480.0,0.0001793,2]
[382463425,1756636240439,-502.79,0.0001793,2]
[382463427,1756636240449,-1869.57,0.0001793,2]
[382463430,1756636240458,-480.0,0.0001793,2]
[382463432,1756636240468,-480.0,0.0001793,2]
[382463434,1756636240477,-173.13617814,0.0001793,2]
[382463436,1756636240487,-480.0,0.0001793,2]
[382463438,1756636240496,-481.38064116,0.0001793,2]
[382463440,1756636240506,-2153.77,0.0001793,2]
[382463442,1756636240515,-2770.45,0.0001793,2]
[382463444,1756636240525,-555.84,0.0001793,2]
[382463446,1756636240534,-1542.0,0.0001793,2]
[382463448,1756636240544,-480.0,0.0001793,2]
[382463450,1756636240553,-480.0,0.0001793,2]
[382463452,1756636240563,-500.0,0.0001793,2]
[382463454,1756636240572,-500.0,0.0001793,2]
[382463456,1756636240582,-151.60746108,0.0001793,2]
[382463458,1756636240592,-480.0,0.0001793,2]
[382463460,1756636240601,-500.0,0.0001793,2]
[382463462,1756636240610,-151.0,0.0001793,2]
[382463464,1756636240620,-480.0,0.0001793,2]
[382463466,1756636240630,-151.0,0.0001793,2]
[382463468,1756636240640,-7621.64,0.0001793,2]
[382463470,1756636240650,-480.88586375,0.0001793,2]
[382463473,1756636240663,-480.0,0.0001793,2]
[382463475,1756636240673,-480.0,0.0001793,2]
[382463477,1756636240682,-179.45001036,0.0001793,2]
[382463479,1756636240692,-480.0,0.0001793,2]
[382463481,1756636240701,-500.0,0.0001793,2]
[382463483,1756636240711,-500.0,0.0001793,2]
[382463485,1756636240720,-151.0,0.0001793,2]
[382463487,1756636240730,-480.0,0.0001793,2]
[382463489,1756636240740,-480.0,0.0001793,2]
[382463491,1756636240750,-3702.65,0.0001793,2]
[382463493,1756636240759,-480.0,0.0001793,2]
[382463495,1756636240771,-9809.04,0.0001793,2]
[382463497,1756636240782,-737.04,0.0001793,2]
[382463499,1756636240791,-480.0,0.0001793,2]
[382463501,1756636240800,-534.67,0.0001793,2]
[382463503,1756636240810,-480.0,0.0001793,2]
[382463505,1756636240819,-1881.33,0.0001793,2]
[382463507,1756636240831,-480.0,0.0001793,2]
[382463509,1756636240841,-480.0,0.0001793,2]
[382463511,1756636240851,-480.0,0.0001793,2]
[382463513,1756636240860,-514.23,0.0001793,2]
[382463515,1756636240869,-480.0,0.0001793,2]
[382463517,1756636240879,-586.76,0.0001793,2]
[382463519,1756636240888,-480.0,0.0001793,2]
[382463521,1756636240898,-1105.26,0.0001793,2]
[382463523,1756636240907,-480.0,0.0001793,2]
[382463525,1756636240917,-165.925572,0.0001793,2]
[382463527,1756636240927,-480.0,0.0001793,2]
[382463529,1756636240937,-880.48,0.0001793,2]
[382463531,1756636240946,-789.46,0.0001793,2]
[382463533,1756636240956,-481.40225443,0.0001793,2]
[382463535,1756636240966,-151.0,0.0001793,2]
[382463537,1756636240975,-480.0,0.0001793,2]
[382463539,1756636240984,-151.0,0.0001793,2]
[382463541,1756636240994,-151.0,0.0001793,2]
[382463543,1756636241004,-1243.99,0.0001793,2]
[382463545,1756636241013,-9350.55,0.0001793,2]
[382463547,1756636241023,-151.0,0.0001793,2]
[382463549,1756636241032,-923.92,0.0001793,2]
[382463551,1756636241041,-2273.44,0.0001793,2]
[382463553,1756636241050,-1461.13,0.0001793,2]
[382463555,1756636241060,-151.0,0.0001793,2]
[382463557,1756636241069,-480.0,0.0001793,2]
[382463559,1756636241079,-151.0,0.0001793,2]
[382463561,1756636241088,-279.423575,0.0001793,2]
[382463563,1756636241096,-151.0,0.0001793,2]
[382463564,1756636241106,-151.0,0.0001793,2]
[382463565,1756636241115,-480.0,0.0001793,2]
[382463566,1756636241125,-1000.0,0.0001793,2]
[382463567,1756636241135,-480.0,0.0001793,2]
[382463569,1756636241145,-4682.5,0.0001793,2]
[382463571,1756636241155,-151.0,0.0001793,2]
[382463572,1756636241166,-1129.79,0.0001793,2]
[382463573,1756636241176,-151.0,0.0001793,2]
[382463574,1756636241186,-151.0,0.0001793,2]
[382463575,1756636241195,-151.0,0.0001793,2]
[382463576,1756636241205,-2385.19,0.0001793,2]
[382463577,1756636241215,-480.0,0.0001793,2]
[382463578,1756636241225,-571.52321439,0.0001793,2]
[382463579,1756636241235,-480.0,0.0001793,2]
[382463580,1756636241244,-185.876676,0.0001793,2]
[382463581,1756636241254,-480.0,0.0001793,2]
[382463582,1756636241263,-185.876676,0.0001793,2]
[382463583,1756636241273,-151.0,0.0001793,2]
[382463584,1756636241282,-185.876676,0.0001793,2]
[382463585,1756636241292,-538.7,0.0001793,2]
[382463586,1756636241302,-185.876676,0.0001793,2]
[382463587,1756636241311,-596.24306652,0.0001793,2]
[382463588,1756636241321,-480.0,0.0001793,2]
[382463589,1756636241330,-151.0,0.0001793,2]
[382463590,1756636241342,-151.0,0.0001793,2]
[382463591,1756636241351,-229.118611,0.0001793,2]
[382463592,1756636241361,-151.0,0.0001793,2]
[382463593,1756636241371,-480.0,0.0001793,2]
[382463594,1756636241380,-229.118611,0.0001793,2]
[382463595,1756636241390,-151.0,0.0001793,2]
[382463596,1756636241401,-229.118611,0.0001793,2]
[382463597,1756636241411,-500.0,0.0001793,2]
[382463598,1756636241420,-500.0,0.0001793,2]
[382463599,1756636241430,-652.143732,0.0001793,2]
[382463600,1756636241439,-151.0,0.0001793,2]
[382463601,1756636241449,-229.118611,0.0001793,2]
[382463602,1756636241458,-652.143732,0.0001793,2]
[382463603,1756636241468,-151.943352,0.0001793,2]
[382463604,1756636241478,-480.32440113,0.0001793,2]
[382463605,1756636241488,-151.0,0.0001793,2]
[382463606,1756636241499,-652.143732,0.0001793,2]
[382463607,1756636241510,-480.0,0.0001793,2]
[382463608,1756636241519,-481.182224,0.0001793,2]
[382463609,1756636241530,-151.0,0.0001793,2]
[382463610,1756636241539,-151.0,0.0001793,2]
[382463611,1756636241549,-652.143732,0.0001793,2]
[382463612,1756636241559,-4607.93,0.0001793,2]
[382463613,1756636241568,-445.54626521,0.00017931,2]
[382463614,1756636241577,-1297.72,0.00017931,2]
[382463615,1756636241587,-480.0,0.00017931,2]
[382463616,1756636241596,-480.0,0.00017931,2]
[382463617,1756636241606,-480.0,0.00017931,2]
[382463618,1756636241616,-650.9,0.00017931,2]
[382463619,1756636241625,-1578.77,0.00017931,2]
[382463620,1756636241635,-480.0,0.00017931,2]
[382463621,1756636241644,-480.0,0.00017931,2]
[382463622,1756636241654,-1949.26,0.00017931,2]
[382463624,1756636241664,-480.0,0.00017931,2]
[382463626,1756636241673,-480.0,0.00017931,2]
[382463628,1756636241684,-480.0,0.00017931,2]
[382463629,1756636241693,-287.782845,0.00017931,2]
[382463631,1756636241703,-1562.44,0.00017931,2]
[382463633,1756636241713,-1693.91,0.00017931,2]
[382463635,1756636241722,-480.0,0.00017931,2]
[382463637,1756636241732,-555.57,0.00017931,2]
[382463639,1756636241741,-151.0,0.00017931,2]
[382463641,1756636241751,-151.0,0.00017931,2]
[382463642,1756636241760,-480.0,0.00017931,2]
[382463643,1756636241770,-2000.0,0.00017931,15]
[382463644,1756636241779,-280.70832157,0.00017931,15]
[382463645,1756636241789,-151.0,0.00017931,2]
[382463646,1756636241798,-151.0,0.00017931,2]
[382463647,1756636241807,-151.0,0.00017931,2]
[382463649,1756636241817,-638.49,0.00017931,2]
[382463651,1756636241827,-480.0,0.00017931,2]
[382463652,1756636241839,-847.23,0.00017931,2]
[382463654,1756636241848,-151.0,0.00017931,2]
[382463656,1756636241858,-151.0,0.00017931,2]
[382463657,1756636241867,-151.0,0.00017931,2]
[382463658,1756636241878,-151.0,0.00017931,2]
[382463659,1756636241888,-151.0,0.00017931,2]
[382463660,1756636241898,-480.0,0.00017931,2]
[382463661,1756636241907,-151.0,0.00017931,2]
[382463662,1756636241916,-151.0,0.00017931,2]
[382463663,1756636241927,-480.0,0.00017931,2]
[382463664,1756636241936,-822.0,0.00017931,2]
[382463665,1756636241947,-480.72266844,0.00017931,2]
[382463666,1756636242144,-721.32,0.00017931,2]
[382463667,1756636242155,-1464.13,0.00017931,2]
[382463668,1756636242166,-151.0,0.00017931,2]
[382463669,1756636242175,-1569.43,0.00017931,2]
[382463670,1756636242185,-151.0,0.00017931,2]
[382463672,1756636242194,-1642.79,0.00017931,2]
[382463673,1756636242203,-567.43,0.00017931,2]
[382463674,1756636242212,-151.0,0.00017931,2]
[382463675,1756636242221,-480.0,0.00017931,2]
[382463676,1756636242231,-1455.08,0.00017931,2]
[382463677,1756636242241,-480.0,0.00017931,2]
[382463678,1756636242250,-1815.96,0.00017931,2]
[382463679,1756636242260,-151.0,0.00017931,2]
[382463680,1756636242269,-151.0,0.00017931,2]
[382463681,1756636242279,-481.80391927,0.00017931,2]
[382463682,1756636242288,-1603.31,0.00017931,2]
[382463683,1756636242298,-154.702727,0.00017931,2]
[382463684,1756636242307,-480.0,0.00017931,2]
[382463685,1756636242316,-1973.57,0.00017931,2]
[382463686,1756636242326,-151.0,0.00017931,2]
[382463687,1756636242335,-270.445229,0.00017931,2]
[382463688,1756636242344,-151.0,0.00017931,2]
[382463689,1756636242353,-706.43,0.00017931,2]
[382463690,1756636242363,-151.0,0.00017931,2]
[382463691,1756636242372,-411.47985354,0.00017931,2]
[382463692,1756636242382,-480.0,0.00017931,2]
[382463693,1756636242391,-500.74,0.00017931,2]
[382463694,1756636242400,-480.0,0.00017931,2]
[382463695,1756636242410,-151.0,0.00017931,2]
[382463696,1756636242419,-480.0,0.00017931,2]
[382463697,1756636242430,-504.98,0.00017931,2]
[382463698,1756636242440,-727.79,0.00017931,2]
[382463699,1756636242449,-254.252658,0.00017931,2]
[382463700,1756636242459,-151.0,0.00017931,2]
[382463701,1756636242469,-151.0,0.00017931,2]
[382463702,1756636242478,-2898.88,0.00017931,2]
[382463703,1756636242487,-151.0,0.00017931,2]
[382463704,1756636242497,-1737.4,0.00017931,2]
[382463705,1756636242506,-984.47,0.00017931,2]
[382463706,1756636242516,-151.0,0.00017931,2]
[382463707,1756636242526,-480.0,0.00017931,2]
[382463708,1756636242536,-930.35,0.00017931,2]
[382463709,1756636242546,-480.0,0.00017931,2]
[382463710,1756636242555,-740.8,0.00017931,2]
[382463711,1756636242565,-151.0,0.00017931,2]
[382463712,1756636242575,-174.328887,0.00017931,2]
[382463713,1756636242584,-169.664587,0.00017931,2]
[382463714,1756636242594,-1853.64,0.00017931,2]
[382463715,1756636242603,-151.0,0.00017931,2]
[382463716,1756636242612,-6863.46,0.00017931,2]
[382463717,1756636242621,-1059.09,0.00017931,2]
[382463718,1756636242631,-1473.14,0.00017931,2]
[382463719,1756636242640,-151.0,0.00017931,2]
[382463720,1756636242650,-151.0,0.00017931,2]
[382463721,1756636242659,-590.8,0.00017931,2]
[382463722,1756636242668,-480.0,0.00017931,2]
[382463723,1756636242677,-151.0,0.00017931,2]
[382463724,1756636242687,-151.0,0.00017931,2]
[382463725,1756636242698,-882.2,0.00017931,2]
[382463726,1756636242708,-151.0,0.00017931,2]
[382463727,1756636242717,-2642.58,0.00017931,2]
[382463728,1756636242726,-2155.02,0.00017931,2]
[382463729,1756636242736,-1092.28,0.00017931,2]
[382463730,1756636242745,-151.0,0.00017931,2]
[382463731,1756636242755,-628.21,0.00017931,2]
[382463732,1756636242764,-628.21,0.00017931,2]
[382463733,1756636242773,-628.21,0.00017931,2]
[382463734,1756636242783,-628.21,0.00017931,2]
[382463735,1756636242792,-628.21,0.00017931,2]
[382463736,1756636242802,-628.21,0.00017931,2]
[382463737,1756636242812,-628.21,0.00017931,2]
[382463738,1756636242821,-628.21,0.00017931,2]
[382463739,1756636242837,-628.21,0.00017931,2]
[382463740,1756636242846,-628.21,0.00017931,2]
[382463741,1756636242856,-480.0,0.00017931,2]
[382463742,1756636242866,-1733.66,0.00017931,2]
[382463743,1756636242876,-151.0,0.00017931,2]
[382463744,1756636242886,-151.0,0.00017931,2]
[382463746,1756636242895,-1223.71,0.00017931,2]
[382463748,1756636242905,-151.0,0.00017931,2]
[382463750,1756636242914,-151.0,0.00017931,2]
[382463752,1756636242924,-151.0,0.00017931,2]
[382463754,1756636242933,-1688.46,0.00017931,2]
[382463756,1756636242942,-151.343345,0.00017931,2]
[382463758,1756636242952,-151.0,0.00017931,2]
[382463760,1756636242961,-481.47897705,0.00017931,2]
[382463761,1756636242970,-151.0,0.00017931,2]
[382463763,1756636242979,-831.83,0.00017931,2]
[382463764,1756636242989,-151.0,0.00017931,2]
[382463765,1756636242998,-151.0,0.00017931,2]
[382463766,1756636243007,-346.0,0.00017931,2]
[382463767,1756636243017,-151.0,0.00017931,2]
[382463768,1756636243027,-151.0,0.00017931,2]
[382463769,1756636243036,-151.158634,0.00017931,2]
[382463770,1756636243045,-151.0,0.00017931,2]
[382463771,1756636243054,-858.4,0.00017931,2]
[382463772,1756636243064,-185.876676,0.00017931,2]
[382463773,1756636243073,-185.876676,0.00017931,2]
[382463774,1756636243082,-151.55384,0.00017931,2]
[382463775,1756636243091,-185.876676,0.00017931,2]
[382463776,1756636243101,-496.54,0.00017931,2]
[382463777,1756636243110,-185.876676,0.00017931,2]
[382463778,1756636243119,-151.0,0.00017931,2]
[382463779,1756636243128,-184.038744,0.00017931,2]
[382463780,1756636243137,-229.118611,0.00017931,2]
[382463781,1756636243147,-156.167908,0.00017931,2]
[382463782,1756636243157,-229.118611,0.00017931,2]
[382463783,1756636243166,-151.0,0.00017931,2]
[382463784,1756636243175,-229.118611,0.00017931,2]
[382463785,1756636243184,-500.0,0.00017931,2]
[382463786,1756636243194,-500.0,0.00017931,2]
[382463787,1756636243203,-500.0,0.00017931,2]
[382463788,1756636243212,-480.0,0.00017931,2]
[382463789,1756636243222,-500.0,0.00017931,2]
[382463790,1756636243231,-652.143732,0.00017931,2]
[382463791,1756636243240,-151.0,0.00017931,2]
[382463792,1756636243249,-229.118611,0.00017931,2]
[382463793,1756636243259,-500.0,0.00017931,2]
[382463794,1756636243268,-500.0,0.00017931,2]
[382463795,1756636243277,-500.0,0.00017931,2]
[382463796,1756636243290,-500.0,0.00017931,2]
[382463797,1756636243300,-500.0,0.00017931,2]
[382463798,1756636243309,-500.0,0.00017931,2]
[382463799,1756636243318,-652.143732,0.00017931,2]
[382463800,1756636243328,-151.0,0.00017931,2]
[382463801,1756636243337,-652.143732,0.00017931,2]
[382463802,1756636243346,-151.0,0.00017931,2]
[382463803,1756636243355,-652.143732,0.00017931,2]
[382463804,1756636243364,-480.0,0.00017931,2]
[382463805,1756636243374,-1703.6990249,0.00017931,2]
[382463806,1756636243383,-998.40255591,0.00017951,2]
[382463807,1756636243392,-168.0,0.00017975,2]
[382463808,1756636243401,-151.0,0.00018,2]
[382463809,1756636243411,-151.0,0.00018,2]
[382463810,1756636243420,-151.0,0.00018,2]
[382463811,1756636243430,-20947.06138607,0.00018,2]
[382463812,1756636243439,-7360.81993649,0.00018,2]
[382463813,1756636243448,-916.14,0.00018,2]
[382463814,1756636243457,-197.59145903,0.0001801,2]
[382463815,1756636243467,-151.0,0.00018011,2]
[382463816,1756636243476,-151.0,0.00018011,2]
[382463817,1756636243486,-151.0,0.00018011,2]
[382463819,1756636243495,-151.0,0.00018011,2]
[382463820,1756636243505,-151.0,0.00018011,2]
[382463822,1756636243515,-159.226158,0.00018011,2]
[382463824,1756636243524,-3028.397421,0.00018011,2]
[382463825,1756636243533,-151.0,0.00018011,2]
[382463826,1756636243542,-151.0,0.00018011,2]
[382463827,1756636243552,-151.0,0.00018011,2]
[382463828,1756636243561,-151.0,0.00018011,2]
[382463829,1756636243571,-151.0,0.00018011,2]
[382463830,1756636243580,-151.0,0.00018011,2]
[382463831,1756636243589,-151.0,0.00018011,2]
[382463832,1756636243598,-151.0,0.00018011,2]
[382463833,1756636243607,-266.07364189,0.00018011,2]
[382463834,1756636243617,-151.0,0.00018011,2]
[382463835,1756636243626,-160.424535,0.00018011,2]
[382463836,1756636243636,-151.0,0.00018011,2]
[382463837,1756636243645,-167.076088,0.00018011,2]
[382463838,1756636243654,-151.0,0.00018011,2]
[382463839,1756636243664,-151.0,0.00018011,2]
[382463840,1756636243673,-151.0,0.00018011,2]
[382463841,1756636243683,-151.0,0.00018011,2]
[382463842,1756636243693,-151.0,0.00018011,2]
[382463843,1756636243703,-151.0,0.00018011,2]
[382463844,1756636243712,-151.0,0.00018011,2]
[382463845,1756636243722,-151.0,0.00018011,2]
[382463846,1756636243732,-151.0,0.00018011,2]
[382463847,1756636243742,-151.0,0.00018011,2]
[382463848,1756636243751,-151.0,0.00018011,2]
[382463849,1756636243761,-293.103662,0.00018011,2]
[382463850,1756636243770,-151.0,0.00018011,2]
[382463851,1756636243781,-151.0,0.00018011,2]
[382463852,1756636243790,-151.83901,0.00018011,2]
[382463853,1756636243800,-151.0,0.00018011,2]
[382463854,1756636243810,-151.0,0.00018011,2]
[382463855,1756636243819,-151.0,0.00018011,2]
[382463856,1756636243832,-212.672836,0.00018011,2]
[382463857,1756636243842,-185.876676,0.00018011,2]
[382463858,1756636243851,-185.876676,0.00018011,2]
[382463859,1756636243861,-185.876676,0.00018011,2]
[382463860,1756636243871,-185.876676,0.00018011,2]
[382463861,1756636243881,-1000.0,0.00018011,2]
[382463862,1756636243890,-1000.0,0.00018011,2]
[382463863,1756636243900,-1000.0,0.00018011,2]
[382463864,1756636243911,-1000.0,0.00018011,2]
[382463865,1756636243921,-151.0,0.00018011,2]
[382463866,1756636243933,-1000.0,0.00018011,2]
[382463867,1756636243943,-1000.0,0.00018011,2]
[382463868,1756636243953,-1000.0,0.00018011,2]
[382463869,1756636243962,-1000.0,0.00018011,2]
[382463870,1756636243971,-229.118611,0.00018011,2]
[382463871,1756636243981,-1000.0,0.00018011,2]
[382463872,1756636243991,-1000.0,0.00018011,2]
[382463873,1756636244001,-1000.0,0.00018011,2]
[382463874,1756636244011,-1000.0,0.00018011,2]
[382463875,1756636244021,-1000.0,0.00018011,2]
[382463876,1756636244031,-229.118611,0.00018011,2]
[382463877,1756636244041,-1000.0,0.00018011,2]
[382463878,1756636244051,-1000.0,0.00018011,2]
[382463879,1756636244060,-1000.0,0.00018011,2]
[382463880,1756636244069,-1000.0,0.00018011,2]
[382463881,1756636244079,-1000.0,0.00018011,2]
[382463882,1756636244088,-229.118611,0.00018011,2]
[382463883,1756636244097,-1000.0,0.00018011,2]
[382463884,1756636244106,-1000.0,0.00018011,2]
[382463885,1756636244116,-1000.0,0.00018011,2]
[382463886,1756636244126,-1000.0,0.00018011,2]
[382463887,1756636244136,-652.143732,0.00018011,2]
[382463888,1756636244145,-1000.0,0.00018011,2]
[382463889,1756636244154,-229.118611,0.00018011,2]
[382463890,1756636244164,-1000.0,0.00018011,2]
[382463891,1756636244174,-868.837679,0.00018011,2]
[382463892,1756636244184,-652.143732,0.00018011,2]
[382463893,1756636244193,-151.0,0.00018011,2]
[382463894,1756636244203,-652.143732,0.00018011,2]
[382463895,1756636244213,-151.0,0.00018011,2]
[382463896,1756636244222,-652.143732,0.00018011,2]
[382463897,1756636244232,-151.123548,0.00018011,2]
[382463898,1756636244242,-97296.18157663,0.00018011,2]
[382463899,1756636244252,-628.21,0.00018029,2]
[382463900,1756636244262,-628.21,0.00018029,2]
[382463901,1756636244271,-628.21,0.00018029,2]
[382463902,1756636244282,-628.21,0.00018029,2]
[382463903,1756636244291,-480.0,0.0001803,2]
[382463904,1756636244300,-457.56722464,0.0001803,2]
[382463905,1756636244309,-480.0,0.0001803,2]
[382463906,1756636244318,-480.0,0.0001803,2]
[382463907,1756636244328,-480.0,0.0001803,2]
[382463908,1756636244337,-480.0,0.0001803,2]
[382463909,1756636244346,-480.0,0.0001803,2]
[382463910,1756636244356,-738.24,0.0001803,2]
[382463911,1756636244366,-674.02,0.0001803,2]
[382463912,1756636244375,-480.0,0.0001803,2]
[382463913,1756636244384,-480.0,0.0001803,2]
[382463914,1756636244394,-480.0,0.0001803,2]
[382463915,1756636244403,-480.0,0.0001803,2]
[382463916,1756636244413,-571.99,0.0001803,2]
[382463917,1756636244422,-350.36287307,0.0001803,2]
[382463918,1756636244434,-480.0,0.0001803,2]
[382463919,1756636244443,-480.0,0.0001803,2]
[382463920,1756636244452,-480.0,0.0001803,2]
[382463921,1756636244462,-519.29,0.0001803,2]
[382463922,1756636244471,-480.0,0.0001803,2]
[382463923,1756636244480,-684.59,0.0001803,2]
[382463924,1756636244490,-759.74,0.0001803,2]
[382463925,1756636244500,-480.0,0.0001803,2]
[382463926,1756636244509,-481.60340813,0.0001803,2]
[382463927,1756636244519,-153.83075818,0.0001803,2]
[382463928,1756636244528,-480.0,0.0001803,2]
[382463929,1756636244538,-480.0,0.0001803,2]
[382463930,1756636244548,-480.0,0.0001803,2]
[382463931,1756636244560,-480.0,0.0001803,2]
[382463932,1756636244570,-480.0,0.0001803,2]
[382463933,1756636244580,-1551.5,0.0001803,2]
[382463934,1756636244590,-503.8,0.0001803,2]
[382463935,1756636244600,-1486.16,0.0001803,2]
[382463936,1756636244610,-480.0,0.0001803,2]
[382463937,1756636244619,-480.0,0.0001803,2]
[382463938,1756636244628,-480.0,0.0001803,2]
[382463939,1756636244638,-480.0,0.0001803,2]
[382463940,1756636244647,-480.0,0.0001803,2]
[382463941,1756636244657,-480.0,0.0001803,2]
[382463942,1756636244667,-836.71,0.0001803,2]
[382463943,1756636244677,-177.82874049,0.0001803,2]
[382463944,1756636244686,-480.0,0.0001803,2]
[382463945,1756636244695,-607.24,0.0001803,2]
[382463946,1756636244705,-480.0,0.0001803,2]
[382463947,1756636244715,-481.29,0.0001803,2]
[382463948,1756636244724,-480.0,0.0001803,2]
[382463949,1756636244735,-480.0,0.0001803,2]
[382463950,1756636244744,-572.28,0.0001803,2]
[382463951,1756636244754,-480.0,0.0001803,2]
[382463952,1756636244763,-564.21,0.0001803,2]
[382463953,1756636244771,-586.48,0.0001803,2]
[382463954,1756636244780,-480.0,0.0001803,2]
[382463955,1756636244789,-881.51,0.0001803,2]
[382463956,1756636244798,-480.0,0.0001803,2]
[382463957,1756636244807,-1173.05,0.0001803,2]
[382463958,1756636244815,-581.67,0.0001803,2]
[382463959,1756636244825,-585.33,0.0001803,2]
[382463960,1756636244839,-481.33495109,0.0001803,2]
[382463961,1756636244847,-238.03301617,0.0001803,2]
[382463962,1756636244857,-480.0,0.0001803,2]
[382463963,1756636244867,-480.0,0.0001803,2]
[382463964,1756636244877,-480.0,0.0001803,2]
[382463965,1756636244887,-480.0,0.0001803,2]
[382463966,1756636244896,-675.39,0.0001803,2]
[382463967,1756636244907,-480.0,0.0001803,2]
[382463968,1756636244917,-1399.32,0.0001803,2]
[382463969,1756636244927,-481.51570582,0.0001803,2]
[382463970,1756636244938,-480.0,0.0001803,2]
[382463971,1756636244947,-1000.0,0.0001803,2]
[382463972,1756636244957,-481.19134569,0.0001803,2]
[382463973,1756636244966,-480.0,0.0001803,2]
[382463974,1756636244976,-480.0,0.0001803,2]
[382463975,1756636244986,-480.0,0.0001803,2]
[382463976,1756636244995,-480.0,0.0001803,2]
[382463977,1756636245005,-481.08117347,0.0001803,2]
[382463978,1756636245015,-480.0,0.0001803,2]
[382463979,1756636245024,-480.81705646,0.0001803,2]
[382463980,1756636245033,-480.0,0.0001803,2]
[382463981,1756636245043,-424.23151174,0.0001803,2]
[382463982,1756636245052,-480.0,0.0001803,2]
[382463983,1756636245062,-480.0,0.0001803,2]
[382463984,1756636245071,-480.0,0.0001803,2]
[382463985,1756636245079,-480.0,0.0001803,2]
[382463986,1756636245088,-480.0,0.0001803,2]
[382463987,1756636245097,-480.0,0.0001803,2]
[382463988,1756636245106,-867.44,0.0001803,2]
[382463989,1756636245115,-966.64,0.0001803,2]
[382463990,1756636245125,-480.0,0.0001803,2]
[382463991,1756636245134,-480.0,0.0001803,2]
[382463992,1756636245143,-480.0,0.0001803,2]
[382463993,1756636245151,-480.0,0.0001803,2]
[382463994,1756636245161,-481.37312937,0.0001803,2]
[382463995,1756636245169,-481.07907518,0.0001803,2]
[382463996,1756636245179,-480.90901929,0.0001803,2]
[382463997,1756636245188,-480.66036303,0.0001803,2]
[382463998,1756636245198,-480.77248224,0.0001803,2]
[382463999,1756636245207,-1076.16,0.0001803,2]
[382464000,1756636245349,-480.41918539,0.0001803,2]
[382464003,1756636245380,-480.73,0.0001803,2]
[382464005,1756636245389,-480.0,0.0001803,2]
[382464007,1756636245397,-480.0,0.0001803,2]
[382464009,1756636245406,-500.0,0.0001803,2]
[382464010,1756636245415,-500.0,0.0001803,2]
[382464011,1756636245424,-480.0,0.0001803,2]
[382464012,1756636245434,-480.0,0.0001803,2]
[382464013,1756636245443,-480.0,0.0001803,2]
[382464014,1756636245452,-659.58,0.0001803,2]
[382464015,1756636245461,-961.35,0.0001803,2]
[382464016,1756636245472,-480.88289953,0.0001803,2]
[382464017,1756636245481,-480.0,0.0001803,2]
[382464018,1756636245490,-723.8,0.0001803,2]
[382464019,1756636245499,-480.0,0.0001803,2]